lending/lending_fUSD_20240610
["ID","MTS","AMOUNT","RATE_DAILY","PERIOD"]
[329007642,1718058647155,-161.72062065,0.00024799,2]
[329007643,1718058647168,-161.72062065,0.00024799,2]
[329007644,1718058647177,-161.72062065,0.000249,2]
[329007645,1718058647187,-1098.87558293,0.000249,2]
[329007646,1718058647197,-417.02834,0.00025,2]
[329007647,1718058647207,-225.37665314,0.00025614,2]
[329007648,1718058647217,-4173.94106987,0.00025809,2]
[329007649,1718058647227,-152.8051409,0.00026046,2]
[329007650,1718058647238,-154.45826534,0.00026069,2]
[329007651,1718058647248,-154.45826534,0.00026157,2]
[329007652,1718058647259,-154.45826534,0.00026278,2]
[329007653,1718058647269,-2000.0,0.00026301,3]
[329007654,1718058647280,-165.81296261,0.00026471,2]
[329007655,1718058647290,-152.8051409,0.00026533,2]
[329007656,1718058647300,-1098.87558293,0.00026567,2]
[329007657,1718058647310,-299.8,0.00026641,2]
[329007658,1718058647320,-290.63,0.0002673,2]
[329007659,1718058647331,-3000.0,0.00027,7]
[329007660,1718058647341,-164.73197819,0.00027079,2]
[329007661,1718058647351,-154.45826534,0.00027121,2]
[329007662,1718058647362,-4173.94106987,0.00027173,2]
[329007663,1718058647371,-154.45826534,0.00027228,2]
[329007664,1718058647381,-1186.85316212,0.00027397,2]
[329007665,1718058647601,-298.31787138,0.00027397,2]
[329007666,1718058647614,-9494.5689665,0.00027397,2]
[329007667,1718058647624,-161.72062065,0.000274,2]
[329007668,1718058647634,-225.37665314,0.00027757,2]
[329007669,1718058647644,-154.45826534,0.00027781,2]
[329007670,1718058647655,-1000.0,0.00027885,2]
[329007671,1718058647665,-400.0,0.00028,2]
[329007672,1718058647675,-150.0,0.00028053,10]
[329007673,1718058647684,-809.0,0.00028054,2]
[329007674,1718058647695,-150.0,0.00028054,2]
[329007675,1718058647705,-165.0,0.00028054,2]
[329007676,1718058647715,-446.0,0.00028054,2]
[329007677,1718058647726,-2403.0,0.00028054,2]
[329007678,1718058647736,-551.88,0.00028054,2]
[329007679,1718058647746,-1304.0,0.00028054,2]
[329007680,1718058647756,-3176.0,0.00028054,2]
[329007681,1718058647766,-1978.0,0.00028054,2]
[329007682,1718058647776,-358.0,0.00028054,2]
[329007683,1718058647786,-1095.614,0.00028054,2]
[329007684,1718058647797,-605.062,0.00028054,2]
[329007685,1718058647807,-5155.0,0.00028054,2]
[329007686,1718058647817,-290.0,0.00028054,2]
[329007687,1718058647827,-445.713,0.00028054,2]
[329007688,1718058647838,-5744.16228948,0.00028054,2]
[329007689,1718058647906,-400.57,0.00026554,2]
[329007690,1718058647920,-215.43,0.00026554,2]
[329007691,1718058647930,-32316.83771052,0.00028054,2]
[329007692,1718058647940,-1650.0,0.00028054,2]
[329007693,1718058647950,-1830.0,0.00028054,2]
[329007694,1718058647960,-441.76,0.00028054,2]
[329007695,1718058647970,-154.45826534,0.00028144,2]
[329007696,1718058647980,-1098.87558293,0.00028233,2]
[329007697,1718058647992,-4173.94106987,0.00028536,2]
[329007698,1718058648002,-150.16,0.0002867,2]
[329007699,1718058648013,-10040.4039939,0.0002868,2]
[329007700,1718058648023,-154.45826534,0.00028726,2]
[329007701,1718058648034,-163.72084608,0.00028941,2]
[329007702,1718058648044,-655.0506192,0.00028941,2]
[329007703,1718058648055,-191.1618902,0.00028941,2]
[329007704,1718058648066,-290.63,0.00028993,2]
[329007705,1718058648077,-400.0,0.00029,2]
[329007706,1718058648087,-313.8,0.00029,4]
[329007707,1718058648096,-200.0,0.00029031,2]
[329007708,1718058648106,-500.0,0.00029031,2]
[329007709,1718058648116,-200.0,0.00029031,2]
[329007710,1718058648126,-150.16,0.00029031,2]
[329007711,1718058648135,-150.16,0.00029031,2]
[329007712,1718058648145,-196.64476926,0.00029031,2]
[329007713,1718058648155,-150.0,0.0002904,10]
[329007714,1718058648166,-174.0,0.00029041,5]
[329007715,1718058648176,-508.49419765,0.00029041,4]
[329007716,1718058648186,-500.0,0.00029041,4]
[329007717,1718058648195,-500.0,0.00029041,4]
[329007718,1718058648205,-500.0,0.00029041,4]
[329007719,1718058648214,-500.0,0.00029041,4]
[329007720,1718058648225,-500.0,0.00029041,4]
[329007721,1718058648234,-500.0,0.00029041,4]
[329007722,1718058648244,-261.24,0.00029041,4]
[329007723,1718058648254,-500.0,0.00029041,4]
[329007724,1718058648264,-500.0,0.00029041,4]
[329007725,1718058648274,-500.0,0.00029041,4]
[329007726,1718058648284,-284.71,0.00029041,4]
[329007727,1718058648295,-500.0,0.00029041,4]
[329007728,1718058648305,-508.49669768,0.00029041,4]
[329007729,1718058648316,-500.0,0.00029041,4]
[329007730,1718058648326,-267.24,0.00029041,4]
[329007731,1718058648336,-500.0,0.00029041,4]
[329007732,1718058648346,-500.0,0.00029041,4]
[329007733,1718058648356,-500.0,0.00029041,4]
[329007734,1718058648366,-500.0,0.00029041,4]
[329007735,1718058648376,-500.0,0.00029041,4]
[329007736,1718058648386,-508.62,0.00029041,4]
[329007737,1718058648396,-500.0,0.00029041,4]
[329007738,1718058648407,-500.0,0.00029041,4]
[329007739,1718058648418,-500.0,0.00029041,4]
[329007740,1718058648429,-500.0,0.00029041,4]
[329007741,1718058648439,-500.0,0.00029041,4]
[329007742,1718058648449,-530.15,0.00029041,4]
[329007743,1718058648459,-500.0,0.00029041,4]
[329007744,1718058648469,-466.09158947,0.00029041,4]
[329007745,1718058648478,-500.0,0.00029041,4]
[329007746,1718058648488,-500.0,0.00029041,4]
[329007747,1718058648498,-500.0,0.00029041,4]
[329007748,1718058648509,-500.0,0.00029041,4]
[329007749,1718058648522,-500.0,0.00029041,4]
[329007750,1718058648532,-606.9,0.00029041,4]
[329007751,1718058648542,-500.0,0.00029041,4]
[329007752,1718058648551,-500.0,0.00029041,4]
[329007753,1718058648562,-400.51,0.00029041,4]
[329007754,1718058648571,-500.0,0.00029041,4]
[329007755,1718058648581,-500.0,0.00029041,4]
[329007756,1718058648591,-324.79703411,0.00029041,4]
[329007757,1718058648601,-500.0,0.00029041,4]
[329007758,1718058648611,-500.0,0.00029041,4]
[329007759,1718058648621,-644.62,0.00029041,4]
[329007760,1718058648630,-500.0,0.00029041,4]
[329007761,1718058648639,-547.14475565,0.00029041,4]
[329007762,1718058648649,-500.0,0.00029041,4]
[329007763,1718058648659,-500.0,0.00029041,4]
[329007764,1718058648670,-298.39339498,0.00029041,4]
[329007765,1718058648680,-500.0,0.00029041,4]
[329007766,1718058648690,-500.0,0.00029041,4]
[329007767,1718058648700,-223.71,0.00029041,4]
[329007768,1718058648710,-512.62,0.00029041,4]
[329007769,1718058648720,-500.0,0.00029041,4]
[329007770,1718058648730,-500.0,0.00029041,4]
[329007771,1718058648740,-500.0,0.00029041,4]
[329007772,1718058648751,-500.0,0.00029041,4]
[329007773,1718058648761,-500.0,0.00029041,4]
[329007774,1718058648771,-500.0,0.00029041,4]
[329007775,1718058648782,-500.0,0.00029041,4]
[329007776,1718058648792,-338.184415,0.00029041,4]
[329007777,1718058648802,-549.57,0.00029041,4]
[329007778,1718058648812,-500.0,0.00029041,4]
[329007779,1718058648822,-500.0,0.00029041,4]
[329007780,1718058648832,-500.0,0.00029041,4]
[329007781,1718058648842,-260.31,0.00029041,4]
[329007782,1718058648852,-598.48,0.00029041,4]
[329007783,1718058648863,-500.0,0.00029041,4]
[329007784,1718058648873,-500.0,0.00029041,4]
[329007785,1718058648883,-500.0,0.00029041,4]
[329007786,1718058648894,-500.0,0.00029041,4]
[329007787,1718058648904,-500.0,0.00029041,4]
[329007788,1718058648914,-500.0,0.00029041,4]
[329007789,1718058648924,-500.0,0.00029041,4]
[329007790,1718058648935,-500.0,0.00029041,4]
[329007791,1718058648946,-500.0,0.00029041,4]
[329007792,1718058648956,-500.0,0.00029041,4]
[329007793,1718058648966,-500.0,0.00029041,4]
[329007794,1718058648976,-500.0,0.00029041,4]
[329007795,1718058648989,-354.59,0.00029041,4]
[329007796,1718058649000,-505.74216322,0.00029041,4]
[329007797,1718058649011,-500.0,0.00029041,4]
[329007798,1718058649021,-503.90058427,0.00029041,4]
[329007799,1718058649032,-500.0,0.00029041,4]
[329007800,1718058649042,-609.55,0.00029041,4]
[329007801,1718058649053,-500.0,0.00029041,4]
[329007802,1718058649064,-500.0,0.00029041,4]
[329007803,1718058649075,-500.0,0.00029041,4]
[329007804,1718058649085,-500.0,0.00029041,4]
[329007805,1718058649095,-500.0,0.00029041,4]
[329007806,1718058649105,-512.86691392,0.00029041,4]
[329007807,1718058649115,-500.0,0.00029041,4]
[329007808,1718058649125,-500.0,0.00029041,4]
[329007809,1718058649136,-500.0,0.00029041,4]
[329007810,1718058649146,-500.0,0.00029041,4]
[329007811,1718058649157,-500.0,0.00029041,4]
[329007812,1718058649168,-503.98381873,0.00029041,4]
[329007813,1718058649178,-617.0,0.00029041,4]
[329007814,1718058649187,-500.0,0.00029041,4]
[329007815,1718058649198,-500.0,0.00029041,4]
[329007816,1718058649208,-500.0,0.00029041,4]
[329007817,1718058649218,-500.0,0.00029041,4]
[329007818,1718058649228,-470.7112991,0.00029041,4]
[329007819,1718058649238,-500.0,0.00029041,4]
[329007820,1718058649248,-500.0,0.00029041,4]
[329007821,1718058649258,-500.0,0.00029041,4]
[329007822,1718058649268,-180.87,0.00029041,4]
[329007823,1718058649278,-500.0,0.00029041,4]
[329007824,1718058649290,-638.06,0.00029041,4]
[329007825,1718058649300,-500.0,0.00029041,4]
[329007826,1718058649310,-500.0,0.00029041,4]
[329007827,1718058649320,-541.85,0.00029041,4]
[329007828,1718058649331,-500.0,0.00029041,4]
[329007829,1718058649342,-500.0,0.00029041,4]
[329007830,1718058649352,-500.0,0.00029041,4]
[329007831,1718058649362,-500.0,0.00029041,4]
[329007832,1718058649372,-559.73,0.00029041,4]
[329007833,1718058649382,-500.0,0.00029041,4]
[329007834,1718058649392,-500.0,0.00029041,4]
[329007835,1718058649402,-500.0,0.00029041,4]
[329007836,1718058649412,-500.0,0.00029041,4]
[329007837,1718058649423,-486.47,0.00029041,4]
[329007838,1718058649433,-500.0,0.00029041,4]
[329007839,1718058649443,-500.0,0.00029041,4]
[329007840,1718058649452,-189.0608533,0.00029041,4]
[329007841,1718058649462,-500.0,0.00029041,4]
[329007842,1718058649472,-500.0,0.00029041,4]
[329007843,1718058649482,-500.0,0.00029041,4]
[329007844,1718058649492,-606.02,0.00029041,4]
[329007845,1718058649502,-500.0,0.00029041,4]
[329007846,1718058649512,-202.97,0.00029041,4]
[329007847,1718058649525,-500.0,0.00029041,4]
[329007848,1718058649535,-500.0,0.00029041,4]
[329007849,1718058649545,-500.0,0.00029041,4]
[329007850,1718058649556,-287.19,0.00029041,4]
[329007851,1718058649566,-500.0,0.00029041,4]
[329007852,1718058649576,-500.0,0.00029041,4]
[329007853,1718058649587,-280.84,0.00029041,4]
[329007854,1718058649597,-160.36860564,0.00029041,4]
[329007855,1718058649607,-500.0,0.00029041,4]
[329007856,1718058649617,-277.78,0.00029041,4]
[329007857,1718058649627,-560.09,0.00029041,4]
[329007858,1718058649637,-500.0,0.00029041,4]
[329007859,1718058649647,-510.54812696,0.00029041,4]
[329007860,1718058649657,-500.0,0.00029041,4]
[329007861,1718058649669,-500.0,0.00029041,4]
[329007862,1718058649679,-500.0,0.00029041,4]
[329007863,1718058649689,-500.0,0.00029041,4]
[329007864,1718058649700,-500.0,0.00029041,4]
[329007865,1718058649711,-500.0,0.00029041,4]
[329007866,1718058649721,-407.42,0.00029041,4]
[329007867,1718058649732,-500.0,0.00029041,4]
[329007868,1718058649743,-500.0,0.00029041,4]
[329007869,1718058649753,-500.0,0.00029041,4]
[329007870,1718058649764,-500.0,0.00029041,4]
[329007871,1718058649774,-263.06197576,0.00029041,4]
[329007872,1718058649785,-500.0,0.00029041,4]
[329007873,1718058649795,-500.0,0.00029041,4]
[329007874,1718058649805,-500.0,0.00029041,4]
[329007875,1718058649816,-500.0,0.00029041,4]
[329007876,1718058649826,-543.61,0.00029041,4]
[329007877,1718058649836,-500.0,0.00029041,4]
[329007878,1718058649846,-487.21,0.00029041,4]
[329007879,1718058649856,-500.0,0.00029041,4]
[329007880,1718058649867,-629.96664293,0.00029041,4]
[329007881,1718058649877,-500.0,0.00029041,4]
[329007882,1718058649887,-500.0,0.00029041,4]
[329007883,1718058649898,-500.0,0.00029041,4]
[329007884,1718058649908,-500.0,0.00029041,4]
[329007885,1718058649919,-531.96,0.00029041,4]
[329007886,1718058649929,-500.0,0.00029041,4]
[329007887,1718058649938,-500.0,0.00029041,4]
[329007888,1718058649948,-500.0,0.00029041,4]
[329007889,1718058649959,-500.0,0.00029041,4]
[329007890,1718058649969,-500.0,0.00029041,4]
[329007891,1718058649979,-500.0,0.00029041,4]
[329007892,1718058649992,-500.0,0.00029041,4]
[329007893,1718058650002,-500.0,0.00029041,4]
[329007894,1718058650011,-500.0,0.00029041,4]
[329007895,1718058650021,-561.24,0.00029041,4]
[329007896,1718058650032,-500.0,0.00029041,4]
[329007897,1718058650043,-500.0,0.00029041,4]
[329007898,1718058650052,-558.62,0.00029041,4]
[329007899,1718058650063,-500.0,0.00029041,4]
[329007900,1718058650073,-500.0,0.00029041,4]
[329007901,1718058650084,-513.6,0.00029041,4]
[329007902,1718058650094,-575.26,0.00029041,4]
[329007903,1718058650104,-500.0,0.00029041,4]
[329007904,1718058650114,-604.29,0.00029041,4]
[329007905,1718058650124,-500.0,0.00029041,4]
[329007906,1718058650134,-500.0,0.00029041,4]
[329007907,1718058650144,-500.0,0.00029041,4]
[329007908,1718058650154,-171.83,0.00029041,4]
[329007909,1718058650166,-500.0,0.00029041,4]
[329007910,1718058650176,-500.0,0.00029041,4]
[329007911,1718058650187,-500.0,0.00029041,4]
[329007912,1718058650196,-500.0,0.00029041,4]
[329007913,1718058650206,-500.0,0.00029041,4]
[329007914,1718058650216,-218.43,0.00029041,4]
[329007915,1718058650226,-500.0,0.00029041,4]
[329007916,1718058650235,-500.0,0.00029041,4]
[329007917,1718058650246,-447.45,0.00029041,4]
[329007918,1718058650257,-500.0,0.00029041,4]
[329007919,1718058650266,-500.0,0.00029041,4]
[329007920,1718058650276,-500.0,0.00029041,4]
[329007921,1718058650286,-500.0,0.00029041,4]
[329007922,1718058650296,-500.0,0.00029041,4]
[329007923,1718058650306,-500.0,0.00029041,4]
[329007924,1718058650315,-500.0,0.00029041,4]
[329007925,1718058650325,-500.0,0.00029041,4]
[329007926,1718058650334,-644.28,0.00029041,4]
[329007927,1718058650344,-500.0,0.00029041,4]
[329007928,1718058650354,-500.0,0.00029041,4]
[329007929,1718058650364,-500.0,0.00029041,4]
[329007930,1718058650374,-500.0,0.00029041,4]
[329007931,1718058650384,-500.0,0.00029041,4]
[329007932,1718058650394,-500.0,0.00029041,4]
[329007933,1718058650404,-330.33,0.00029041,4]
[329007934,1718058650414,-218.44641796,0.00029041,4]
[329007935,1718058650424,-500.0,0.00029041,4]
[329007936,1718058650434,-500.0,0.00029041,4]
[329007937,1718058650444,-500.0,0.00029041,4]
[329007938,1718058650454,-500.0,0.00029041,4]
[329007939,1718058650463,-214.5,0.00029041,4]
[329007940,1718058650473,-500.0,0.00029041,4]
[329007941,1718058650482,-500.0,0.00029041,4]
[329007942,1718058650492,-500.0,0.00029041,4]
[329007943,1718058650502,-500.0,0.00029041,4]
[329007944,1718058650511,-180.58,0.00029041,4]
[329007945,1718058650524,-500.0,0.00029041,4]
[329007946,1718058650534,-540.72326028,0.00029041,4]
[329007947,1718058650664,-500.0,0.00029041,4]
[329007948,1718058650675,-500.0,0.00029041,4]
[329007949,1718058650685,-151.45,0.00029041,4]
[329007950,1718058650694,-500.0,0.00029041,4]
[329007951,1718058650704,-500.0,0.00029041,4]
[329007952,1718058650714,-500.0,0.00029041,4]
[329007953,1718058650724,-500.0,0.00029041,4]
[329007954,1718058650734,-500.0,0.00029041,4]
[329007955,1718058650744,-500.0,0.00029041,4]
[329007956,1718058650754,-500.0,0.00029041,4]
[329007957,1718058650764,-590.58,0.00029041,4]
[329007958,1718058650774,-500.0,0.00029041,4]
[329007959,1718058650783,-500.0,0.00029041,4]
[329007960,1718058650793,-500.0,0.00029041,4]
[329007961,1718058650803,-500.0,0.00029041,4]
[329007962,1718058650813,-540.3,0.00029041,4]
[329007963,1718058650823,-500.0,0.00029041,4]
[329007964,1718058650833,-438.19,0.00029041,4]
[329007965,1718058650843,-500.0,0.00029041,4]
[329007966,1718058650854,-500.0,0.00029041,4]
[329007967,1718058650863,-611.49,0.00029041,4]
[329007968,1718058650873,-512.700227,0.00029041,4]
[329007969,1718058650883,-500.0,0.00029041,4]
[329007970,1718058650893,-500.0,0.00029041,4]
[329007971,1718058650903,-298.6,0.00029041,4]
[329007972,1718058650912,-500.0,0.00029041,4]
[329007973,1718058650924,-500.0,0.00029041,4]
[329007974,1718058650934,-500.0,0.00029041,4]
[329007975,1718058650944,-548.82,0.00029041,4]
[329007976,1718058650953,-500.0,0.00029041,4]
[329007977,1718058650963,-500.0,0.00029041,4]
[329007978,1718058650972,-500.0,0.00029041,5]
[329007979,1718058650982,-500.0,0.00029041,4]
[329007980,1718058650997,-248.28,0.00029041,4]
[329007981,1718058651007,-287.66,0.00029041,4]
[329007982,1718058651017,-500.0,0.00029041,4]
[329007983,1718058651027,-500.0,0.00029041,4]
[329007984,1718058651038,-500.0,0.00029041,4]
[329007985,1718058651048,-500.0,0.00029041,4]
[329007986,1718058651057,-500.0,0.00029041,4]
[329007987,1718058651069,-500.0,0.00029041,4]
[329007988,1718058651080,-500.0,0.00029041,4]
[329007989,1718058651091,-500.0,0.00029041,4]
[329007990,1718058651101,-500.0,0.00029041,4]
[329007991,1718058651110,-500.0,0.00029041,4]
[329007992,1718058651120,-353.39,0.00029041,4]
[329007993,1718058651130,-500.0,0.00029041,4]
[329007994,1718058651140,-500.0,0.00029041,4]
[329007995,1718058651150,-500.0,0.00029041,4]
[329007996,1718058651160,-500.0,0.00029041,4]
[329007997,1718058651171,-500.0,0.00029041,4]
[329007998,1718058651181,-500.0,0.00029041,4]
[329007999,1718058651191,-254.97,0.00029041,4]
[329008000,1718058651201,-500.0,0.00029041,4]
[329008001,1718058651211,-500.0,0.00029041,4]
[329008002,1718058651221,-500.0,0.00029041,4]
[329008003,1718058651231,-41.7384002,0.00029041,4]
[329008006,1718058824051,4338225.43778402,0.00014,2]
[329008007,1718058844516,57386.28625916,0.000118,2]
[329008008,1718058850780,15625.13815425,0.00011,2]
[329008016,1718059181897,2553.55168877,8.25e-05,2]
[329008017,1718059184010,362.98346764,0.00011,2]
[329008018,1718059184644,4759.47764759,0.00011,2]
[329008019,1718059186827,242.26733657,0.00011,2]
[329008020,1718059189165,4291.83751585,0.00010999,2]
[329008021,1718059189901,20271.54851503,0.00011,2]
[329008022,1718059193267,155.0,0.00011,2]
[329008023,1718059193386,155.0,0.00011,2]
[329008024,1718059194876,957.98460544,0.0001045,2]
[329008025,1718059199869,2553.55168877,8.25e-05,2]
[329008026,1718059200579,19779.47425751,0.00011,2]
[329008027,1718059203809,362.98346764,0.00011,2]
[329008028,1718059205879,20271.54851503,0.00011,2]
[329008029,1718059211218,155.00000109,0.00011,2]
[329008030,1718059211429,155.13656754,0.00011,2]
[329008031,1718059217869,1310.64571099,8.25e-05,2]
[329008032,1718059218535,19779.47425751,0.00011,2]
[329008033,1718059220856,957.98460544,0.0001045,2]
[329008034,1718059221797,362.60811457,0.00011,2]
[329008035,1718059222144,180.69395492,0.00011,2]
[329008036,1718059228402,24663.38911052,0.00011,2]
[329008037,1718059229875,1074.28534815,0.00011,2]
[329008038,1718059230440,299.75188144,0.00011,2]
[329008039,1718059230473,547903.74825756,0.00011,2]
[329008040,1718059234525,19779.47425751,0.00011,2]
[329008041,1718059236090,180.69395492,0.00011,2]
[329008042,1718059238296,155.0,0.000136,2]
[329008043,1718059238830,957.98460544,0.0001045,2]
[329008044,1718059242442,299.75188144,0.00011,2]
[329008045,1718059246409,24663.38911052,0.00011,2]
[329008046,1718059246455,547903.74825756,0.00011,2]
[329008047,1718059254179,180.69395492,0.00011,2]
[329008048,1718059254535,3311.22076568,0.00011,2]
[329008049,1718059258830,964.14528924,0.0001045,2]
[329008050,1718059260425,24663.38911052,0.00011,2]
[329008051,1718059262446,299.75188144,0.00011,2]
[329008052,1718059264454,547903.74825756,0.00011,2]
[329008053,1718059280934,180.56101311,0.00011,2]
[329008054,1718059280971,9215.80335594,0.00011,2]
[329008055,1718059282438,296.50702696,0.00011,2]
[329008056,1718059282474,305952.2921393,0.00011,2]
[329008057,1718059297401,10000.0,0.000273,60]
[329008058,1718059323422,10000.0,0.000273,60]
[329008060,1718059558029,150.0,0.00014,2]
[329008062,1718059581726,362.69,0.00013834,2]
[329008063,1718059590490,37244.91,0.00013709,2]
[329008064,1718059637150,-163.30089533,0.00014085,2]
[329008065,1718059637174,-155.0,0.00014085,2]
[329008066,1718059637198,-155.0,0.00014085,2]
[329008067,1718059637221,-344.01023986,0.00014086,2]
[329008069,1718059651106,-2886.7269141,0.00014084,2]
[329008070,1718059651130,-155.0,0.00014084,2]
[329008071,1718059651155,-307.45960582,0.00014084,2]
[329008072,1718059651177,-719.4340817,0.00014085,2]
[329008073,1718059651201,-162.64291502,0.00014085,2]
[329008074,1718059651224,-338.68648196,0.00014085,2]
[329008075,1718059651248,-8421.50868744,0.00014085,2]
[329008076,1718059651272,-1.71361968,0.00014086,2]
[329008077,1718059651450,-1219.2104629,0.00014086,2]
[329008078,1718059651474,-792.46810918,0.00014087,2]
[329008079,1718059651497,-715.81385658,0.00014087,2]
[329008080,1718059651522,-786.3940397,0.00014087,2]
[329008081,1718059651546,-205.67039254,0.00014088,2]
[329008082,1718059651569,-2138.20030163,0.00014088,2]
[329008083,1718059651592,-6695.99479211,0.00014088,2]
[329008084,1718059741413,1414.673433,0.00013939,2]
[329008085,1718059744181,306.01,0.0001275,2]
[329008087,1718059832311,-1078.78165656,0.00014004,2]
[329008088,1718059832324,-170.5662108,0.00014004,2]
[329008089,1718059832334,-1071.15753391,0.00014004,2]
[329008090,1718059832345,-312.75876885,0.00014004,2]
[329008092,1718059832536,-1438.8249423,0.00014004,2]
[329008093,1718059832546,-155.0,0.00014005,2]
[329008094,1718059832556,-1201.46136273,0.00014005,2]
[329008095,1718059832569,-6643.9959,0.00014005,2]
[329008096,1718059832580,-297.95,0.00014005,2]
[329008097,1718059832592,-775.19666386,0.00014005,2]
[329008098,1718059832604,-302.49118711,0.00014005,2]
[329008099,1718059832613,-3761.50881289,0.00014005,2]
[329008100,1718059832624,-7215.84910395,0.00014005,2]
[329008101,1718059832634,-645.83379313,0.00014006,2]
[329008102,1718059832643,-1277.25177394,0.00014006,2]
[329008103,1718059832652,-155.0,0.00014007,2]
[329008104,1718059832662,-1053.10914453,0.00014007,2]
[329008105,1718059832671,-305.37480479,0.00014008,2]
[329008106,1718059832682,-35488.4458509,0.00014008,2]
[329008107,1718059832692,-365.45085217,0.00014008,2]
[329008108,1718059832701,-150.0,0.00014086,2]
[329008109,1718059832712,-175.95,0.00014109,2]
[329008110,1718059832721,-150.0,0.00014219,2]
[329008111,1718059832731,-499.99,0.0001424,2]
[329008112,1718059832741,-23109.97631391,0.00014243,2]
[329008113,1718059832929,-381.64171645,0.00014243,2]
[329008114,1718059832942,-3132.50342781,0.00014243,2]
[329008115,1718059832953,-284.1080006,0.00014243,2]
[329008116,1718059832965,-630.71603278,0.00014243,2]
[329008117,1718059832977,-503.15430007,0.00014243,2]
[329008118,1718059832989,-27586.1865127,0.00014243,2]
[329008119,1718059833193,-14976.65997147,0.00014243,2]
[329008121,1718059833202,-600.0,0.00014367,2]
[329008123,1718059833212,-558.35,0.00014367,2]
[329008125,1718059833221,-278.26,0.00014367,2]
[329008127,1718059833231,-14441.313,0.00014469,2]
[329008129,1718059833240,-835.99121708,0.00014601,2]
[329008131,1718059833250,-250.0,0.00014644,2]
[329008133,1718059833260,-956.5707,0.00014798,2]
[329008134,1718059833271,-225.37665314,0.000148,2]
[329008135,1718059833280,-1445.63685371,0.00014887,2]
[329008136,1718059833291,-197.98164075,0.00014888,2]
[329008137,1718059833300,-150.4,0.00014888,2]
[329008138,1718059833310,-508668.90759836,0.00014898,2]
[329008139,1718059833322,-1000.37172,0.00014898,2]
[329008140,1718059833333,-280.44188,0.00014898,2]
[329008141,1718059833345,-592.65614321,0.00014898,2]
[329008142,1718059833356,-578.0391,0.00014898,2]
[329008169,1718059838414,-13610.12201707,0.00014898,2]
[329008170,1718059838426,-32542.82611893,0.00014898,2]
[329008171,1718059838443,-54667.16502552,0.00014898,2]
[329008172,1718059838455,-1168.91354638,0.00014898,2]
[329008173,1718059838466,-1659.99434364,0.00014898,2]
[329008174,1718059838481,-2040.00565636,0.00014898,2]
[329008175,1718059838492,-527.14081138,0.00014898,2]
[329008176,1718059838504,-1192.76000006,0.00014898,2]
[329008177,1718059838516,-789.30350907,0.00014898,2]
[329008178,1718059838528,-57188.41911237,0.00014898,2]
[329008179,1718059838539,-44440.1192,0.000149,2]
[329008180,1718059838549,-347.82842259,0.00014962,2]
[329008181,1718059838559,-150.4,0.0001499,2]
[329008182,1718059838569,-150.4,0.0001499,2]
[329008183,1718059838578,-150.4,0.0001499,2]
[329008184,1718059838588,-5262.79991581,0.00015,2]
[329008185,1718059838780,-446.62731363,0.00015,2]
[329008186,1718059838943,-10430.79943194,0.00015,2]
[329008187,1718059838956,-28322.8141531,0.00015,2]
[329008188,1718059838968,-166283.26133144,0.00015,2]